bitfinex/quotes_ETHUSD_20250708
["timestamp","ask_amount","ask_price","bid_price","bid_amount"]
[1751977125520,16.86848943,2580.8,2580.7,0.001]
[1751977125724,23.27148943,2580.8,2580.7,0.001]
[1751977126527,17.41848943,2580.8,2580.7,0.001]
[1751977126730,23.27148943,2580.8,2580.7,0.001]
[1751977131736,16.57117107,2580.8,2580.7,0.001]
[1751977131937,22.42417107,2580.8,2580.7,0.001]
[1751977137262,22.43159845,2580.8,2580.7,0.001]
[1751977138364,22.98159845,2580.8,2580.7,0.001]
[1751977141662,22.98184658,2580.8,2580.7,0.001]
[1751977142969,22.9819726,2580.8,2580.7,0.001]
[1751977147486,26.46113214,2580.8,2580.7,0.001]
[1751977148480,22.9819726,2580.8,2580.7,0.001]
[1751977148779,26.46680082,2580.8,2580.7,0.001]
[1751977149153,22.9819726,2580.8,2580.7,0.001]
[1751977149340,26.46699171,2580.8,2580.7,0.001]
[1751977149540,22.9819726,2580.8,2580.7,0.001]
[1751977149745,22.9819726,2580.8,2580.6,0.0736914]
[1751977149746,14.61851765,2580.7,2580.6,0.0736914]
[1751977149947,17.42031038,2580.7,2580.6,0.0736914]
[1751977151546,17.42031038,2580.7,2580.6,1e-08]
[1751977151751,17.42031038,2580.7,2580.5,0.001]
[1751977151752,13.87506781,2580.6,2580.5,0.001]
[1751977151981,21.48531764,2580.6,2580.5,0.001]
[1751977156091,21.48609644,2580.6,2580.5,0.001]
[1751977156290,22.74186192,2580.6,2580.5,0.001]
[1751977156976,28.50958521,2580.6,2580.5,0.001]
[1751977158352,22.74186192,2580.6,2580.5,0.001]
[1751977159694,23.29286192,2580.6,2580.5,0.001]
[1751977160060,22.03709644,2580.6,2580.5,0.001]
[1751977160300,21.48709644,2580.6,2580.5,0.001]
[1751977160499,21.68069644,2580.6,2580.5,0.001]
[1751977160860,22.23069644,2580.6,2580.5,0.001]
[1751977161071,27.99841973,2580.6,2580.5,0.001]
[1751977161255,30.20114047,2580.6,2580.5,0.001]
[1751977162205,3.87521798,2580.5,2580.4,0.001]
[1751977162399,15.63324661,2580.5,2580.4,0.001]
[1751977163059,15.82804239,2580.5,2580.4,0.001]
[1751977163265,16.37804239,2580.5,2580.4,1e-08]
[1751977163467,4.42581876,2580.1,2580.0,0.001]
[1751977163796,12.03784739,2580.1,2580.0,0.001]
[1751977171099,15.52628541,2580.1,2580.0,0.001]
[1751977171596,25.52628541,2580.1,2580.0,0.001]
[1751977173501,25.52704684,2580.1,2580.0,0.001]
[1751977173706,27.72976758,2580.1,2580.0,0.001]
[1751977175732,27.72976758,2580.1,2580.0,1e-08]
[1751977175878,24.24132956,2580.1,2580.0,1e-08]
[1751977176876,24.24123126,2580.1,2580.0,1e-08]
[1751977177279,21.87115691,2580.1,2580.0,1e-08]
[1751977177622,27.72515691,2580.1,2580.0,1e-08]
[1751977178219,24.24123126,2580.1,2580.0,1e-08]
[1751977178881,24.24123126,2580.1,2579.5,0.001]
[1751977178882,4.42611922,2579.9,2579.5,0.001]
[1751977179091,17.90989503,2579.7,2579.5,0.001]
[1751977179400,19.66858679,2579.7,2579.5,0.001]
[1751977180291,19.66655415,2579.7,2579.5,0.001]
[1751977182523,19.66655415,2579.7,2579.6,1e-08]
[1751977182724,21.86927489,2579.7,2579.6,1e-08]
[1751977183324,14.07017001,2579.6,2579.5,1e-08]
[1751977183623,21.68182913,2579.6,2579.5,1e-08]
[1751977183794,13.87732154,2579.1,2579.0,0.7721]
[1751977183995,21.68258066,2579.1,2579.0,0.7721]
[1751977185197,22.52240731,2579.1,2579.0,0.001]
[1751977185435,23.56695021,2579.1,2579.0,0.001]
[1751977187094,22.51997145,2579.1,2579.0,0.001]
[1751977195666,22.16171199,2579.1,2579.0,0.001]
[1751977195967,22.52364843,2579.1,2579.0,0.001]
[1751977196566,22.51638129,2579.1,2579.0,0.001]
[1751977197442,22.51636051,2579.1,2579.0,0.001]
[1751977203838,16.11136051,2579.1,2579.0,0.001]
[1751977204160,21.96736051,2579.1,2579.0,0.001]
[1751977204358,16.11136051,2579.1,2579.0,0.001]
[1751977204671,21.96736051,2579.1,2579.0,0.001]
[1751977207875,17.89643897,2579.1,2579.0,0.8048]
[1751977208750,21.77376051,2579.1,2579.0,0.8048]
[1751977209271,12.04043897,2579.1,2579.0,0.8048]
[1751977209470,11.75061232,2579.1,2579.0,0.8048]
[1751977209848,11.75061232,2579.1,2579.0,0.9984]
[1751977211985,1.75061232,2579.1,2579.0,0.9984]
[1751977215997,1.75061232,2579.1,2579.0,4.87587188]
[1751977216446,1.75061232,2579.1,2579.0,0.9984]
[1751977216649,1.75061232,2579.1,2579.0,4.87587188]
[1751977216886,1.75061232,2579.1,2579.0,0.9984]
[1751977217083,1.75061232,2579.1,2579.0,4.87587188]
[1751977217394,1.75061232,2579.1,2579.0,5.75868413]
[1751977217558,0.002,2579.4,2579.2,0.7681]
[1751977217753,1.39325802,2579.3,2579.2,3.91587836]
[1751977217954,1.74036161,2579.3,2579.2,3.91587836]
[1751977218298,1.74036161,2579.3,2579.2,4.83880665]
[1751977218488,1.74036161,2579.3,2579.2,5.8026871]
[1751977219856,1.39325802,2579.3,2579.2,5.8026871]
[1751977220057,0.002,2579.4,2579.3,4.64512089]
[1751977220257,1.73897514,2579.4,2579.3,4.64512089]
[1751977220572,1.73897514,2579.4,2579.3,4.39512089]
[1751977220573,0.34643013,2579.4,2579.3,4.39512089]
[1751977220779,0.34643013,2579.4,2579.3,5.33809169]
[1751977221082,0.002,2579.4,2579.3,5.33809169]
[1751977221486,1.39454501,2579.4,2579.3,5.33809169]
[1751977221651,0.002,2579.4,2579.3,5.33809169]
[1751977223260,0.002,2579.4,2579.3,16.99958518]
[1751977223457,0.002,2579.4,2579.3,16.96081498]
[1751977226191,0.002,2579.4,2579.3,11.19309169]
[1751977227597,0.002,2579.4,2579.3,11.19209169]
[1751977227761,0.002,2579.4,2579.3,10.49912089]
[1751977228890,0.002,2579.4,2579.3,6.6221]
[1751977229701,0.002,2579.4,2579.3,10.49912089]
[1751977231412,0.002,2579.4,2579.3,6.6221]
[1751977231577,0.002,2579.4,2579.3,10.49912089]
[1751977231782,0.002,2579.4,2579.3,6.6221]
[1751977232014,0.002,2579.4,2579.3,10.49912089]
[1751977232515,0.002,2579.4,2579.3,6.6221]
[1751977233218,0.002,2579.4,2579.3,10.49912089]
[1751977233515,0.002,2579.4,2579.3,6.6221]
[1751977240628,0.002,2579.4,2579.2,0.1936]
[1751977240927,3.87893707,2579.4,2579.2,6.0476]
[1751977241505,0.002,2579.4,2579.2,6.0476]
[1751977241805,1.73442555,2579.4,2579.2,6.0476]
[1751977242116,1.39473093,2579.4,2579.2,6.0476]
[1751977242316,0.3397342,2579.3,2579.2,6.0476]
[1751977243233,1.73246513,2579.3,2579.2,6.0476]
[1751977245598,5.60948602,2579.3,2579.2,0.1936]
[1751977245814,5.60948602,2579.3,2579.2,6.0476]
[1751977246010,5.60948602,2579.3,2579.2,0.1936]
[1751977247330,1.73246513,2579.3,2579.2,0.1936]
[1751977248353,1.39273093,2579.3,2579.2,0.1936]
[1751977249000,5.26975182,2579.3,2579.2,0.1936]
[1751977250041,1.39273093,2579.3,2579.2,0.1936]
[1751977251130,1.39273093,2579.3,2579.2,1.0107]
[1751977253849,1.39473093,2579.3,2579.2,4.88787121]
[1751977254016,1.39473093,2579.3,2579.2,1.0107]
[1751977254613,1.39473093,2579.3,2579.2,0.1936]
[1751977256347,5.27175182,2579.3,2579.2,0.1936]
[1751977257651,5.61415365,2579.3,2579.2,0.1936]
[1751977257945,7.56345614,2579.3,2579.2,0.1936]
[1751977259549,3.68643525,2579.3,2579.2,0.1936]
[1751977260045,1.73713276,2579.3,2579.2,0.1936]
[1751977261225,5.61415365,2579.3,2579.2,0.1936]
[1751977261724,1.73713276,2579.3,2579.2,0.1936]
[1751977262263,5.61415365,2579.3,2579.2,0.1936]
[1751977264553,13.87717121,2579.2,2579.1,0.001]
[1751977264751,17.56163646,2579.2,2579.1,0.1946]
[1751977271294,13.68446525,2579.2,2579.1,0.1946]
[1751977272191,17.56163646,2579.2,2579.1,0.1946]
[1751977272792,13.68446525,2579.2,2579.1,0.1946]
[1751977272964,17.56163646,2579.2,2579.1,0.1946]
[1751977273463,13.68446525,2579.2,2579.1,0.1946]
[1751977273665,17.56163646,2579.2,2579.1,0.1946]
[1751977277670,17.56163646,2579.2,2579.1,0.001]
[1751977277870,23.32935975,2579.2,2579.1,0.001]
[1751977278082,23.52295975,2579.2,2579.1,0.001]
[1751977280408,27.01001884,2579.2,2579.1,0.001]
[1751977280915,27.56001884,2579.2,2579.1,0.001]
[1751977281077,24.07295975,2579.2,2579.1,0.001]
[1751977284304,27.5573139,2579.2,2579.1,0.001]
[1751977293709,35.4473139,2579.2,2579.1,0.001]
[1751977296613,35.46808503,2579.2,2579.1,0.001]
[1751977296907,31.98373088,2579.2,2579.1,1e-08]
[1751977297412,13.87732154,2579.1,2579.0,0.001]
[1751977297595,30.67615658,2579.1,2579.0,0.001]
[1751977305855,14.42747188,2579.0,2578.9,0.0736914]
[1751977306124,27.80609906,2579.0,2578.9,0.0736914]
[1751977306729,27.80609906,2579.0,2578.9,0.0726914]
[1751977306915,27.80609906,2579.0,2578.8,1e-08]
[1751977306916,14.42762224,2578.9,2578.8,1e-08]
[1751977307093,21.95124942,2578.9,2578.8,1e-08]
[1751977307294,29.22624942,2578.9,2578.8,1e-08]
[1751977307494,21.95124942,2578.9,2578.8,1e-08]
[1751977307709,29.22624942,2578.9,2578.8,1e-08]
[1751977307919,18.90145728,2578.9,2578.8,1e-08]
[1751977308119,24.75845728,2578.9,2578.8,1e-08]
[1751977309221,32.64845728,2578.9,2578.8,1e-08]
[1751977310222,38.41618057,2578.9,2578.8,1e-08]
[1751977310404,43.06307619,2578.9,2578.8,1e-08]
[1751977311499,41.64507619,2578.9,2578.8,1e-08]
[1751977311901,36.99818057,2578.9,2578.8,1e-08]
[1751977312101,31.23045728,2578.9,2578.8,1e-08]
[1751977312322,14.42792298,2578.7,2578.5,0.001]
[1751977312623,25.52886218,2578.7,2578.5,0.001]
[1751977312828,27.47819467,2578.7,2578.5,0.001]
[1751977313595,27.76283111,2578.7,2578.5,0.001]
[1751977314424,27.76438204,2578.7,2578.5,0.001]
[1751977319429,21.35538204,2578.7,2578.5,0.001]
[1751977319630,25.45764955,2578.7,2578.5,0.001]
[1751977320232,15.24349013,2578.7,2578.6,0.8265]
[1751977320532,11.75745482,2578.7,2578.6,0.8265]
[1751977321606,11.75745482,2578.7,2578.6,4.70457337]
[1751977321803,1.75745482,2578.7,2578.6,4.89817337]
[1751977322107,1.75745482,2578.7,2578.6,6.395343]
[1751977322320,0.36317296,2578.7,2578.6,6.395343]
[1751977322520,1.39428186,2578.8,2578.7,3.87792298]
[1751977322708,0.002,2579.1,2579.0,0.8093]
[1751977322913,1.75980115,2579.1,2579.0,4.68677188]
[1751977323114,1.75980115,2579.1,2579.0,1.0029]
[1751977324236,11.75980115,2579.1,2579.0,1.0029]
[1751977325530,15.63712269,2579.1,2579.0,1.0029]
[1751977325737,5.63712269,2579.1,2579.0,1.0029]
[1751977327904,3.87770445,2578.9,2578.8,0.802]
[1751977328219,13.87778389,2578.8,2578.7,0.1936]
[1751977328420,15.63383719,2578.8,2578.7,0.1936]
[1751977330105,3.87792298,2578.7,2578.6,0.001]
[1751977330409,15.63397628,2578.7,2578.6,0.001]
[1751977336245,15.63514216,2578.7,2578.6,0.001]
[1751977339444,21.49614216,2578.7,2578.6,0.001]
[1751977339642,21.49608981,2578.7,2578.6,0.001]
[1751977339945,22.79220489,2578.7,2578.6,0.001]
[1751977340324,22.78974033,2578.7,2578.6,0.001]
[1751977341837,26.27577564,2578.7,2578.6,0.001]
[1751977348649,22.78974033,2578.7,2578.6,0.001]
[1751977350150,23.33974033,2578.7,2578.6,0.001]
[1751977352851,31.22974033,2578.7,2578.6,0.001]
[1751977353153,31.2297118,2578.7,2578.6,0.001]
[1751977355755,34.71574711,2578.7,2578.6,0.001]
[1751977355966,31.2297118,2578.7,2578.6,0.001]
[1751977356255,34.71574711,2578.7,2578.6,0.001]
[1751977356647,34.71606694,2578.7,2578.6,0.001]
[1751977360330,31.23003163,2578.7,2578.6,0.001]
[1751977362449,25.36903163,2578.7,2578.6,0.001]
[1751977362650,27.0109322,2578.7,2578.6,0.001]
[1751977364327,29.38391655,2578.7,2578.6,0.001]
[1751977365552,32.8719322,2578.7,2578.6,0.001]
[1751977366452,23.52291655,2578.7,2578.6,0.8101]
[1751977366635,29.38291655,2578.7,2578.6,0.8101]
[1751977366837,29.38291655,2578.7,2578.6,0.001]
[1751977368038,29.38291655,2578.7,2578.6,0.8225]
[1751977368039,25.50499357,2578.7,2578.6,0.8225]
[1751977368362,19.64499357,2578.7,2578.6,0.8225]
[1751977370166,19.62911162,2578.7,2578.6,0.8225]
[1751977371969,19.62911162,2578.7,2578.6,1.0161]
[1751977373874,11.73911162,2578.7,2578.6,1.0161]
[1751977374040,15.6170346,2578.7,2578.6,1.0161]
[1751977374236,17.76483806,2578.7,2578.6,0.001]
[1751977374467,15.6170346,2578.7,2578.6,0.001]
[1751977377277,16.1670346,2578.7,2578.6,0.001]
[1751977377480,16.3606346,2578.7,2578.6,0.001]
[1751977380385,16.35195261,2578.7,2578.6,0.001]
[1751977380956,21.47035261,2578.7,2578.6,0.001]
[1751977396414,22.21395261,2578.7,2578.6,0.001]
[1751977396976,25.70196826,2578.7,2578.6,0.001]
[1751977399709,25.72726733,2578.7,2578.6,0.001]
[1751977402216,19.86526733,2578.7,2578.6,0.001]
[1751977402383,15.82725168,2578.7,2578.6,0.001]
[1751977402706,21.68525168,2578.7,2578.6,0.001]
[1751977408629,15.81544376,2578.7,2578.6,0.001]
[1751977416840,15.81511989,2578.7,2578.6,0.001]
[1751977423662,15.80928952,2578.7,2578.6,0.001]
[1751977429069,15.80921636,2578.7,2578.6,0.001]
[1751977430268,15.81121636,2578.7,2578.6,0.001]
[1751977432676,19.29923201,2578.7,2578.6,0.001]
[1751977433195,18.94195138,2578.7,2578.6,0.001]
[1751977433360,19.29932667,2578.7,2578.6,0.001]
[1751977435886,19.84932667,2578.7,2578.6,0.001]
[1751977438973,23.09659031,2578.7,2578.6,0.001]
[1751977439174,13.87807337,2578.6,2578.5,0.001]
[1751977439375,15.62766933,2578.6,2578.5,0.001]
[1751977440376,11.74959596,2578.6,2578.5,0.001]
[1751977440604,11.74282694,2578.6,2578.5,0.001]
[1751977442782,15.62090031,2578.6,2578.5,0.001]
[1751977444382,11.74282694,2578.6,2578.5,0.001]
[1751977446320,15.62090031,2578.6,2578.5,0.001]
[1751977447021,11.74282694,2578.6,2578.5,0.8168]
[1751977447225,1.74282694,2578.6,2578.5,5.38137307]
[1751977447437,1.74282694,2578.6,2578.5,5.4201553]
[1751977447584,1.39222067,2578.6,2578.5,11.203462]
[1751977447782,0.002,2578.7,2578.6,3.87807337]
[1751977448132,0.002,2578.7,2578.6,7.09000561]
[1751977448512,0.002,2578.7,2578.6,7.28360561]
[1751977449030,0.002,2578.7,2578.6,7.32238634]
[1751977450632,0.002,2578.7,2578.6,7.28360561]
[1751977451545,0.002,2578.7,2578.6,10.74347337]
[1751977456140,0.002,2578.7,2578.6,4.88747337]
[1751977456441,0.002,2578.7,2578.6,10.74347337]
[1751977456848,0.002,2578.7,2578.6,1.0094]
[1751977457013,0.002,2578.7,2578.6,4.88747337]
[1751977457366,0.002,2578.7,2578.6,11.42259564]
[1751977460655,0.002,2578.7,2578.6,7.54452227]
[1751977461255,0.002,2578.7,2578.6,11.42259564]
[1751977466066,0.002,2578.7,2578.6,5.56759564]
[1751977466269,0.002,2578.7,2578.6,11.42259564]
[1751977469870,0.002,2578.7,2578.6,7.54452227]
[1751977470059,0.002,2578.7,2578.6,10.74247337]
[1751977472374,0.002,2578.7,2578.6,4.88747337]
[1751977472559,0.002,2578.7,2578.6,10.74247337]
[1751977473162,0.002,2578.7,2578.6,6.0486]
[1751977476386,1.39681179,2578.7,2578.6,6.0486]
[1751977477865,1.39681179,2578.7,2578.6,9.92667337]
[1751977478272,1.39681179,2578.7,2578.6,6.0486]
[1751977479293,1.39681179,2578.7,2578.6,0.1936]
[1751977479596,1.39681179,2578.7,2578.6,6.0486]
[1751977483982,1.39681179,2578.7,2578.6,9.92667337]
[1751977484376,1.39681179,2578.7,2578.6,6.0486]
[1751977485199,1.39681179,2578.7,2578.6,9.92667337]
[1751977486983,1.39681179,2578.7,2578.6,6.0486]
[1751977487489,1.39681179,2578.7,2578.6,9.92667337]
[1751977487883,1.39681179,2578.7,2578.6,6.0486]
[1751977488191,1.39681179,2578.7,2578.6,9.92667337]
[1751977489305,1.39681179,2578.7,2578.6,10.69267337]
[1751977489483,1.39681179,2578.7,2578.6,12.15561412]
[1751977493325,0.002,2578.7,2578.6,12.15561412]
[1751977500510,0.002,2578.7,2578.6,12.15461412]
[1751977503045,0.002,2578.7,2578.6,6.30061412]
[1751977503348,0.002,2578.7,2578.6,12.15461412]
[1751977503520,0.002,2578.7,2578.6,9.92567337]
[1751977506372,0.002,2578.7,2578.6,6.0476]
[1751977506562,0.35898906,2578.7,2578.6,6.0476]
[1751977506871,0.002,2578.7,2578.6,6.0476]
[1751977507069,1.7545431,2578.7,2578.6,6.0476]
[1751977507246,1.7545431,2578.7,2578.6,0.1936]
[1751977507247,0.35898906,2578.7,2578.6,0.1936]
[1751977507580,0.35898906,2578.7,2578.6,6.0476]
[1751977507739,1.7545431,2578.7,2578.6,6.0476]
[1751977507940,0.35898906,2578.7,2578.6,6.0476]
[1751977509550,1.7545431,2578.7,2578.6,6.0476]
[1751977510675,1.7545431,2578.7,2578.6,0.1936]
[1751977510969,0.35898906,2578.7,2578.6,6.0476]
[1751977511275,1.7542572,2578.7,2578.6,6.0476]
[1751977512991,1.75835869,2578.7,2578.6,6.0476]
[1751977513500,1.75835869,2578.7,2578.6,9.92567337]
[1751977513793,0.002,2578.7,2578.6,18.421897]
[1751977516278,1.75861446,2578.7,2578.6,12.6385903]
[1751977520489,1.75861446,2578.7,2578.6,11.8844903]
[1751977521894,1.39746486,2578.7,2578.6,11.8844903]
[1751977522197,0.36145167,2578.7,2578.6,11.8844903]
[1751977523591,0.002,2578.7,2578.6,11.8844903]
[1751977523972,1.39746486,2578.7,2578.6,11.8844903]
[1751977524201,0.002,2578.7,2578.6,11.8844903]
[1751977524404,0.002,2578.7,2578.6,17.667797]
[1751977524570,0.002,2578.7,2578.6,18.477697]
[1751977525773,0.002,2578.7,2578.6,12.6943903]
[1751977527115,1.39782111,2578.7,2578.6,12.6943903]
[1751977527319,0.002,2578.7,2578.6,12.6943903]
[1751977528031,1.39782111,2578.7,2578.6,12.6943903]
[1751977528236,1.7567021,2578.7,2578.6,12.6943903]
[1751977529916,1.39782111,2578.7,2578.6,12.6943903]
[1751977533691,1.39782111,2578.7,2578.6,11.8844903]
[1751977539124,1.33961111,2578.7,2578.6,11.8844903]
[1751977542839,1.33961111,2578.7,2578.6,11.8834903]
[1751977544443,1.33961111,2578.7,2578.6,6.0304903]
[1751977544644,1.33961111,2578.7,2578.6,9.92467337]
[1751977545444,1.33961111,2578.7,2578.6,4.07167337]
[1751977545741,1.33961111,2578.7,2578.6,9.92467337]
[1751977549256,1.33961111,2578.7,2578.6,6.0466]
[1751977549957,1.33961111,2578.7,2578.6,9.92467337]
[1751977550155,1.33961111,2578.7,2578.6,6.0456]
[1751977550463,1.33961111,2578.7,2578.6,9.92367337]
[1751977550760,1.33961111,2578.7,2578.6,6.0456]
[1751977551261,1.33961111,2578.7,2578.6,9.92367337]
[1751977552855,1.33961111,2578.7,2578.6,11.303972]
[1751977555741,1.33961111,2578.7,2578.6,7.42589863]
[1751977559569,1.33961111,2578.7,2578.6,11.303972]
[1751977560554,1.34161111,2578.7,2578.6,11.303972]
[1751977564964,0.002,2578.7,2578.6,11.303972]
[1751977565367,1.34161111,2578.7,2578.6,11.303972]
[1751977565747,0.002,2578.7,2578.6,11.303972]
[1751977565985,1.34161111,2578.7,2578.6,11.303972]
[1751977566182,0.002,2578.7,2578.6,11.303972]
[1751977566475,1.34161111,2578.7,2578.6,11.303972]
[1751977566679,0.002,2578.7,2578.6,11.303972]
[1751977568456,0.002,2578.7,2578.6,9.92367337]
[1751977570063,1.34161111,2578.7,2578.6,9.92367337]
[1751977570383,0.002,2578.7,2578.6,9.92367337]
[1751977571090,1.34161111,2578.7,2578.6,9.92367337]
[1751977571390,0.002,2578.7,2578.6,9.92367337]
[1751977571594,0.002,2578.7,2578.6,11.38268225]
[1751977572088,1.34161111,2578.7,2578.6,11.38268225]
[1751977572287,0.002,2578.7,2578.6,11.38268225]
[1751977572890,1.34161111,2578.7,2578.6,11.38268225]
[1751977573392,0.002,2578.7,2578.6,11.38268225]
[1751977573987,1.34161111,2578.7,2578.6,11.38268225]
[1751977574576,0.002,2578.7,2578.6,11.38268225]
[1751977575287,1.34161111,2578.7,2578.6,11.38268225]
[1751977575485,0.002,2578.7,2578.6,9.92367337]
[1751977577465,1.34161111,2578.7,2578.6,9.92367337]
[1751977577987,0.002,2578.7,2578.6,9.92367337]
[1751977579500,1.34161111,2578.7,2578.6,9.92367337]
[1751977580065,1.39746168,2578.7,2578.6,9.92367337]
[1751977585400,1.39746168,2578.7,2578.6,0.1936]
[1751977585601,2.70691892,2578.7,2578.6,6.0446]
[1751977587315,1.71666065,2578.7,2578.6,6.0446]
[1751977589633,1.71666065,2578.7,2578.6,0.1936]
[1751977595845,1.71666065,2578.7,2578.6,4.85267337]
[1751977596052,1.71666065,2578.7,2578.6,0.9746]
[1751977596510,1.71666065,2578.7,2578.6,0.1936]
[1751977597234,1.71666065,2578.7,2578.6,4.1104541]
[1751977597533,1.71666065,2578.7,2578.5,0.001]
[1751977597838,1.71739946,2578.6,2578.5,0.001]
[1751977606342,1.39546168,2578.6,2578.5,0.001]
[1751977606550,1.7178926,2578.6,2578.5,0.001]
[1751977607548,1.7178926,2578.6,2578.5,0.1946]
[1751977609810,1.71808883,2578.6,2578.5,0.1946]
[1751977610334,5.5961622,2578.6,2578.5,0.1946]
[1751977611145,1.71808883,2578.6,2578.5,0.1946]
[1751977612155,5.5961622,2578.6,2578.5,0.1946]
[1751977612360,1.71808883,2578.6,2578.5,0.1946]
[1751977616430,1.39546168,2578.6,2578.5,0.1946]
[1751977616727,1.71808854,2578.6,2578.5,0.1946]
[1751977617683,27.79055722,2578.6,2578.5,0.001]
[1751977618345,28.08384174,2578.6,2578.5,0.001]
[1751977618548,13.87867504,2578.2,2578.1,0.001]
[1751977618747,15.59676358,2578.2,2578.1,0.001]
[1751977618948,18.28402059,2578.2,2578.1,0.001]
[1751977621044,15.59676358,2578.2,2578.1,0.001]
[1751977622170,11.71808854,2578.2,2578.1,0.001]
[1751977622344,1.71808854,2578.2,2578.1,0.7617]
[1751977622544,0.32262686,2578.2,2578.1,0.7617]
[1751977622860,0.32262686,2578.2,2578.1,0.80048825]
[1751977623065,0.32262686,2578.2,2578.1,4.67931374]
[1751977623674,0.32262686,2578.2,2578.1,0.80048825]
[1751977623962,0.32262686,2578.2,2578.1,0.001]
[1751977624170,1.71808854,2578.2,2578.1,0.001]
[1751977624567,0.32262686,2578.2,2578.1,0.001]
[1751977625140,1.39546168,2578.3,2578.1,0.001]
[1751977625359,0.36247544,2578.2,2578.1,0.001]
[1751977626042,1.39546168,2578.3,2578.1,0.001]
[1751977627284,0.3625722,2578.2,2578.1,0.001]
[1751977627816,0.3625722,2578.2,2578.1,0.1946]
[1751977627946,1.75803388,2578.2,2578.1,0.1946]
[1751977630735,0.3625722,2578.2,2578.1,0.1946]
[1751977632394,1.75803388,2578.2,2578.1,0.1946]
[1751977632963,1.7580511,2578.2,2578.1,0.1946]
[1751977633190,0.36258942,2578.2,2578.1,0.1946]
[1751977636792,1.7580511,2578.2,2578.1,0.1946]
[1751977638165,0.36258942,2578.2,2578.1,0.1946]
[1751977638366,1.7580511,2578.2,2578.1,0.1946]
[1751977639098,5.63672614,2578.2,2578.1,0.1946]
[1751977639299,7.20038521,2578.2,2578.1,0.1946]
[1751977640781,7.19776492,2578.2,2578.1,0.1946]
[1751977643273,17.19776492,2578.2,2578.1,0.1946]
[1751977643714,17.19776492,2578.2,2578.1,0.001]
[1751977644222,23.06076492,2578.2,2578.1,0.001]
[1751977644420,22.6981755,2578.2,2578.1,0.001]
[1751977644619,23.06078305,2578.2,2578.1,0.001]
[1751977645818,23.61078305,2578.2,2578.1,0.001]
[1751977645999,31.50078305,2578.2,2578.1,0.001]
[1751977646201,32.40078305,2578.2,2578.1,0.001]
[1751977646390,32.59332566,2578.2,2578.1,0.001]
[1751977646602,32.59303347,2578.2,2578.1,0.001]
[1751977647099,36.07719448,2578.2,2578.1,0.001]
[1751977647295,32.59303347,2578.2,2578.1,0.001]
[1751977647521,36.07719448,2578.2,2578.1,0.001]
[1751977647925,32.59303347,2578.2,2578.1,0.001]
[1751977648936,33.07277026,2578.2,2578.1,1e-08]
[1751977649520,14.07242549,2578.1,2578.0,0.0736914]
[1751977649688,14.07242549,2578.1,2577.9,0.001]
[1751977649689,20.21236463,2578.0,2577.9,0.001]
[1751977649892,27.83028049,2578.0,2577.9,0.001]
[1751977650351,27.83002595,2578.0,2577.9,0.001]
[1751977650625,29.39368502,2578.0,2577.9,1e-08]
[1751977651296,20.21266558,2577.8,2577.7,1e-08]
[1751977651499,33.6953269,2577.8,2577.7,1e-08]
[1751977651698,23.3903269,2577.8,2577.7,1e-08]
[1751977651930,30.93793147,2577.8,2577.7,1e-08]
[1751977652242,30.93587097,2577.8,2577.7,1e-08]
[1751977652543,30.93115197,2577.8,2577.7,1e-08]
[1751977652725,34.40769381,2577.8,2577.7,1e-08]
[1751977652923,4.42972841,2577.5,2577.2,0.0726914]
[1751977653128,28.02059891,2577.5,2577.2,0.0726914]
[1751977653327,28.02059891,2577.5,2576.3,0.0726914]
[1751977653328,13.88138487,2576.4,2576.3,0.0726914]
[1751977653511,10.0,2576.4,2576.3,0.0726914]
[1751977653998,10.35975217,2576.4,2576.3,0.0726914]
[1751977654200,10.0,2576.4,2576.3,0.0726914]
[1751977655348,13.88138487,2576.4,2576.3,0.0726914]
[1751977655940,21.89837812,2576.4,2576.3,0.0726914]
[1751977656142,21.63380158,2576.4,2576.3,0.0726914]
[1751977657340,14.16680833,2576.4,2576.3,0.0726914]
[1751977658258,15.55192417,2576.4,2576.3,0.0726914]
[1751977658447,14.16680833,2576.4,2576.3,0.0726914]
[1751977660454,14.5265357,2576.4,2576.3,0.0726914]
[1751977661451,15.90842633,2576.4,2576.3,0.0726914]
[1751977663336,16.10202633,2576.4,2576.3,0.0726914]
[1751977663865,16.65202633,2576.4,2576.3,0.0726914]
[1751977665259,16.10202633,2576.4,2576.3,0.0726914]
[1751977665461,20.4105357,2576.4,2576.3,0.0726914]
[1751977665776,0.35972737,2576.4,2576.3,0.8764914]
[1751977665960,9.76516626,2576.6,2576.3,0.8764914]
[1751977666160,10.0,2576.5,2576.3,0.8764914]
[1751977666471,10.0,2576.6,2576.3,0.8764914]
[1751977666638,5.888,2576.5,2576.3,0.8764914]
[1751977667071,13.88101851,2576.7,2576.3,0.8764914]
[1751977667376,5.888,2576.6,2576.3,0.8764914]
[1751977667573,5.888,2576.6,2576.3,4.75802457]
[1751977668276,5.888,2576.6,2576.3,0.8764914]
[1751977669079,5.888,2576.6,2576.3,4.75802406]
[1751977669453,5.887,2576.6,2576.3,5.62200336]
[1751977669648,10.0,2576.7,2576.3,5.62200336]
[1751977669968,5.78338868,2576.6,2576.3,0.8764914]
[1751977670163,9.66447552,2576.6,2576.3,0.8774914]
[1751977671278,9.66477355,2576.4,2576.3,0.0736914]
[1751977672372,5.78338868,2576.4,2576.3,0.0736914]
[1751977672780,9.77230425,2576.5,2576.3,0.0736914]
[1751977673460,5.891,2576.5,2576.3,0.0736914]
[1751977673663,9.77225757,2576.5,2576.3,0.0736914]
[1751977675075,3.88138487,2576.4,2576.3,0.0736914]
[1751977675447,4.24142419,2576.4,2576.3,0.0736914]
[1751977675951,4.24142419,2576.4,2576.3,0.2672914]
[1751977676854,5.62706956,2576.4,2576.3,0.2672914]
[1751977679561,5.62866998,2576.4,2576.3,1.0632914]
[1751977679767,5.62866998,2576.4,2576.3,0.2672914]
[1751977685290,5.61783877,2576.4,2576.3,0.2672914]
[1751977688714,5.61103733,2576.4,2576.3,0.2672914]
[1751977696644,15.61103733,2576.4,2576.3,0.2672914]